[Event "December 12 Early 2023"]
[Site "https://www.chess.com"]
[Date "2023.12.12"]
[Round "4"]
[White "Zhigalko, Sergei"]
[Black "Matinian, Nikita"]
[Result "0-1"]
[Board "14"]
[TimeControl "180+1"]
[WhiteFideId "13502956"]
[BlackFideId "24129100"]
[WhiteElo "2960"]
[BlackElo "2738"]
[WhiteTeam "BLR"]
[BlackTeam "FID"]
[WhiteClock "0:00:00"]
[BlackClock "0:00:02"]

1. e4 {[%clk 0:03:00]}  c5 {[%clk 0:02:57]} 2. Nf3 {[%clk 0:03:00]}  e6 {[%clk 0:02:57]} 3. c3 {[%clk 0:03:00]}  d5 {[%clk 0:02:57]} 4. exd5 {[%clk 0:02:56]}  Qxd5 {[%clk 0:02:56]} 5. d4 {[%clk 0:02:56]}  Nf6 {[%clk 0:02:57]} 6. Bd3 {[%clk 0:02:47]}  b6 {[%clk 0:02:43]} 7. Na3 {[%clk 0:02:36]}  a6 {[%clk 0:02:30]} 8. Nc4 {[%clk 0:02:18]}  Nbd7 {[%clk 0:02:29]} 9. O-O {[%clk 0:02:12]}  Bb7 {[%clk 0:02:29]} 10. Be3 {[%clk 0:01:50]}  cxd4 {[%clk 0:02:22]} 11. Bxd4 {[%clk 0:01:44]}  Bc5 {[%clk 0:02:21]} 12. Ne3 {[%clk 0:01:06]}  Qh5 {[%clk 0:02:06]} 13. Be2 {[%clk 0:01:06]}  Ng4 {[%clk 0:01:34]} 14. Nxg4 {[%clk 0:00:41]}  Qxg4 {[%clk 0:01:35]} 15. h3 {[%clk 0:00:39]}  Qg6 {[%clk 0:01:27]} 16. Re1 {[%clk 0:00:24]}  Rd8 {[%clk 0:01:25]} 17. Bd3 {[%clk 0:00:25]}  Qh5 {[%clk 0:01:11]} 18. Be4 {[%clk 0:00:24]}  Bxe4 {[%clk 0:01:05]} 19. Rxe4 {[%clk 0:00:25]}  O-O {[%clk 0:00:51]} 20. Qe2 {[%clk 0:00:24]}  Bxd4 {[%clk 0:00:44]} 21. Nxd4 {[%clk 0:00:24]}  Qxe2 {[%clk 0:00:43]} 22. Rxe2 {[%clk 0:00:25]}  Nc5 {[%clk 0:00:40]} 23. f4 {[%clk 0:00:13]}  Rd6 {[%clk 0:00:40]} 24. f5 {[%clk 0:00:10]}  Rfd8 {[%clk 0:00:38]} 25. Rae1 {[%clk 0:00:08]}  Nd3 {[%clk 0:00:34]} 26. Rd1 {[%clk 0:00:07]}  Nf4 {[%clk 0:00:29]} 27. Re4 {[%clk 0:00:07]}  g5 {[%clk 0:00:24]} 28. Rf1 {[%clk 0:00:03]}  Kg7 {[%clk 0:00:16]} 29. fxe6 {[%clk 0:00:03]}  fxe6 {[%clk 0:00:14]} 30. Rfxf4 {[%clk 0:00:03]}  gxf4 {[%clk 0:00:12]} 31. Nxe6+ {[%clk 0:00:04]}  Rxe6 {[%clk 0:00:07]} 32. Rxe6 {[%clk 0:00:04]}  b5 {[%clk 0:00:07]} 33. Rxa6 {[%clk 0:00:04]}  Rd1+ {[%clk 0:00:07]} 34. Kf2 {[%clk 0:00:03]}  Rd2+ {[%clk 0:00:08]} 35. Kf3 {[%clk 0:00:03]}  Rxb2 {[%clk 0:00:08]} 36. Ra5 {[%clk 0:00:03]}  Kg6 {[%clk 0:00:06]} 37. h4 {[%clk 0:00:03]}  h5 {[%clk 0:00:05]} 38. Ra6+ {[%clk 0:00:03]}  Kg7 {[%clk 0:00:05]} 39. Ra5 {[%clk 0:00:03]}  Kg6 {[%clk 0:00:06]} 40. a4 {[%clk 0:00:03]}  bxa4 {[%clk 0:00:06]} 41. Rxa4 {[%clk 0:00:04]}  Rc2 {[%clk 0:00:04]} 42. Rc4 {[%clk 0:00:04]}  Kg7 {[%clk 0:00:04]} 43. Rc5 {[%clk 0:00:04]}  Kg6 {[%clk 0:00:04]} 44. Rc7 {[%clk 0:00:05]}  Rc1 {[%clk 0:00:03]} 45. Rc6+ {[%clk 0:00:05]}  Kg7 {[%clk 0:00:03]} 46. Kxf4 {[%clk 0:00:05]}  Rc2 {[%clk 0:00:02]} 47. g3 {[%clk 0:00:05]}  Rg2 {[%clk 0:00:02]} 48. Kf3 {[%clk 0:00:05]}  Rc2 {[%clk 0:00:01]} 49. c4 {[%clk 0:00:05]}  Rc3+ {[%clk 0:00:02]} 50. Kf4 {[%clk 0:00:06]}  Rd3 {[%clk 0:00:02]} 51. Rc5 {[%clk 0:00:00]}  Kg6 {[%clk 0:00:02]} 0-1

[Event "December 12 Early 2023"]
[Site "https://www.chess.com"]
[Date "2023.12.12"]
[Round "4"]
[White "Sychev, Klementy"]
[Black "Manelyuk, Daniil"]
[Result "0-1"]
[Board "16"]
[TimeControl "180+1"]
[WhiteFideId "4114060"]
[BlackFideId "44173920"]
[WhiteElo "2947"]
[BlackElo "2729"]
[WhiteTeam "FID"]
[BlackTeam "RUS"]
[WhiteClock "0:00:00"]
[BlackClock "0:00:19"]

1. e4 {[%clk 0:03:00]}  e6 {[%clk 0:02:53]} 2. d4 {[%clk 0:03:00]}  d5 {[%clk 0:02:53]} 3. e5 {[%clk 0:03:00]}  c5 {[%clk 0:02:53]} 4. c3 {[%clk 0:03:01]}  Nc6 {[%clk 0:02:53]} 5. Nf3 {[%clk 0:03:01]}  Qb6 {[%clk 0:02:53]} 6. Bd3 {[%clk 0:03:00]}  Bd7 {[%clk 0:02:53]} 7. dxc5 {[%clk 0:03:00]}  Bxc5 {[%clk 0:02:50]} 8. O-O {[%clk 0:03:00]}  Nh6 {[%clk 0:02:50]} 9. b4 {[%clk 0:02:58]}  Be7 {[%clk 0:02:48]} 10. Qe2 {[%clk 0:02:48]}  O-O {[%clk 0:02:19]} 11. Ng5 {[%clk 0:01:18]}  Nf5 {[%clk 0:01:58]} 12. g4 {[%clk 0:01:13]}  Bxg5 {[%clk 0:01:54]} 13. Bxg5 {[%clk 0:01:13]}  Nfe7 {[%clk 0:01:54]} 14. b5 {[%clk 0:01:11]}  Nxe5 {[%clk 0:01:45]} 15. Bxe7 {[%clk 0:01:08]}  Nxd3 {[%clk 0:01:43]} 16. Bxf8 {[%clk 0:01:06]}  Bxb5 {[%clk 0:01:36]} 17. Ba3 {[%clk 0:00:55]}  e5 {[%clk 0:01:19]} 18. Qe3 {[%clk 0:00:45]}  Qg6 {[%clk 0:01:07]} 19. Qg3 {[%clk 0:00:27]}  Nf4 {[%clk 0:00:52]} 20. Re1 {[%clk 0:00:27]}  Qc2 {[%clk 0:00:52]} 21. Qe3 {[%clk 0:00:18]}  Nd3 {[%clk 0:00:42]} 22. Nd2 {[%clk 0:00:12]}  Qxc3 {[%clk 0:00:36]} 23. Be7 {[%clk 0:00:09]}  d4 {[%clk 0:00:35]} 24. Qg5 {[%clk 0:00:06]}  h6 {[%clk 0:00:30]} 25. Qf5 {[%clk 0:00:03]}  Qxd2 {[%clk 0:00:22]} 26. Red1 {[%clk 0:00:03]}  Qe2 {[%clk 0:00:20]} 27. Rdb1 {[%clk 0:00:03]}  Bc6 {[%clk 0:00:19]} 28. Bh4 {[%clk 0:00:03]}  Be4 {[%clk 0:00:19]} 29. Qd7 {[%clk 0:00:00]}  Qf3 {[%clk 0:00:19]} 0-1

[Event "December 12 Early 2023"]
[Site "https://www.chess.com"]
[Date "2023.12.12"]
[Round "4"]
[White "Poormosavi, Seyed Kian"]
[Black "Kovalenko, Igor"]
[Result "1-0"]
[Board "17"]
[TimeControl "180+1"]
[WhiteFideId "12585807"]
[BlackFideId "14117908"]
[WhiteElo "2698"]
[BlackElo "2930"]
[WhiteTeam "IRI"]
[BlackTeam "UKR"]
[WhiteClock "0:00:11"]
[BlackClock "0:00:00"]

1. Nf3 {[%clk 0:03:00]}  Nf6 {[%clk 0:02:56]} 2. g3 {[%clk 0:03:01]}  b5 {[%clk 0:02:55]} 3. Bg2 {[%clk 0:03:02]}  Bb7 {[%clk 0:02:52]} 4. O-O {[%clk 0:03:01]}  g6 {[%clk 0:02:52]} 5. b3 {[%clk 0:03:02]}  Bg7 {[%clk 0:02:52]} 6. Bb2 {[%clk 0:03:02]}  O-O {[%clk 0:02:52]} 7. c4 {[%clk 0:03:02]}  a6 {[%clk 0:02:52]} 8. a4 {[%clk 0:02:55]}  b4 {[%clk 0:02:51]} 9. d3 {[%clk 0:02:50]}  a5 {[%clk 0:02:51]} 10. Nbd2 {[%clk 0:02:48]}  d6 {[%clk 0:02:49]} 11. Qc2 {[%clk 0:02:47]}  e5 {[%clk 0:02:48]} 12. e4 {[%clk 0:02:45]}  Na6 {[%clk 0:02:46]} 13. d4 {[%clk 0:02:42]}  exd4 {[%clk 0:02:46]} 14. Nxd4 {[%clk 0:02:35]}  Re8 {[%clk 0:02:46]} 15. Rfe1 {[%clk 0:02:33]}  Nc5 {[%clk 0:02:45]} 16. Rad1 {[%clk 0:02:31]}  Qc8 {[%clk 0:02:43]} 17. f3 {[%clk 0:02:25]}  h5 {[%clk 0:02:43]} 18. h4 {[%clk 0:02:22]}  Re7 {[%clk 0:02:37]} 19. Nf1 {[%clk 0:02:22]}  c6 {[%clk 0:02:21]} 20. Ne3 {[%clk 0:02:13]}  Qc7 {[%clk 0:02:22]} 21. Ndf5 {[%clk 0:02:03]}  gxf5 {[%clk 0:02:21]} 22. Nxf5 {[%clk 0:02:03]}  Ne8 {[%clk 0:01:50]} 23. Nxg7 {[%clk 0:01:23]}  Nxg7 {[%clk 0:01:51]} 24. Qd2 {[%clk 0:01:22]}  Re6 {[%clk 0:01:51]} 25. Re3 {[%clk 0:01:16]}  Rg6 {[%clk 0:01:49]} 26. f4 {[%clk 0:01:14]}  Re8 {[%clk 0:01:37]} 27. Qd4 {[%clk 0:01:04]}  Nce6 {[%clk 0:01:16]} 28. Qd2 {[%clk 0:01:02]}  Nc5 {[%clk 0:00:55]} 29. Kh2 {[%clk 0:01:02]}  Bc8 {[%clk 0:00:54]} 30. f5 {[%clk 0:00:49]}  Rh6 {[%clk 0:00:54]} 31. Qd4 {[%clk 0:00:44]}  f6 {[%clk 0:00:51]} 32. Kg1 {[%clk 0:00:30]}  Nb7 {[%clk 0:00:41]} 33. Kf2 {[%clk 0:00:29]}  Re5 {[%clk 0:00:36]} 34. Ree1 {[%clk 0:00:25]}  Ne8 {[%clk 0:00:35]} 35. Bc1 {[%clk 0:00:24]}  Rh7 {[%clk 0:00:31]} 36. Qa7 {[%clk 0:00:23]}  Nc5 {[%clk 0:00:29]} 37. Qxc7 {[%clk 0:00:21]}  Rxc7 {[%clk 0:00:30]} 38. Re3 {[%clk 0:00:20]}  Rce7 {[%clk 0:00:27]} 39. Rde1 {[%clk 0:00:19]}  Kh7 {[%clk 0:00:16]} 40. Bf3 {[%clk 0:00:19]}  Bxf5 {[%clk 0:00:14]} 41. exf5 {[%clk 0:00:18]}  Nd3+ {[%clk 0:00:14]} 42. Rxd3 {[%clk 0:00:17]}  Rxe1 {[%clk 0:00:15]} 43. Bf4 {[%clk 0:00:15]}  c5 {[%clk 0:00:11]} 44. Bxh5 {[%clk 0:00:15]}  Rb1 {[%clk 0:00:11]} 45. Bf3 {[%clk 0:00:14]}  Rb2+ {[%clk 0:00:11]} 46. Kf1 {[%clk 0:00:13]}  Kg7 {[%clk 0:00:11]} 47. g4 {[%clk 0:00:13]}  Rb1+ {[%clk 0:00:10]} 48. Kf2 {[%clk 0:00:14]}  Ree1 {[%clk 0:00:10]} 49. g5 {[%clk 0:00:12]}  Rf1+ {[%clk 0:00:10]} 50. Kg3 {[%clk 0:00:13]}  Rg1+ {[%clk 0:00:11]} 51. Kh3 {[%clk 0:00:13]}  Rbf1 {[%clk 0:00:10]} 52. Re3 {[%clk 0:00:14]}  Kf8 {[%clk 0:00:09]} 53. g6 {[%clk 0:00:14]}  Ng7 {[%clk 0:00:07]} 54. Bh6 {[%clk 0:00:13]}  Re1 {[%clk 0:00:04]} 55. Rd3 {[%clk 0:00:12]}  Rgf1 {[%clk 0:00:04]} 56. Kg2 {[%clk 0:00:11]}  Rg1+ {[%clk 0:00:04]} 57. Kh3 {[%clk 0:00:10]}  Rgf1 {[%clk 0:00:04]} 58. Bg2 {[%clk 0:00:10]}  Rxf5 {[%clk 0:00:00]} 59. Rxd6 {[%clk 0:00:11]} 1-0

[Event "December 12 Early 2023"]
[Site "https://www.chess.com"]
[Date "2023.12.12"]
[Round "4"]
[White "Tologon tegin, Semetei"]
[Black "Kovalev, Vladislav"]
[Result "1-0"]
[Board "19"]
[TimeControl "180+1"]
[WhiteFideId "13800574"]
[BlackFideId "13504398"]
[WhiteElo "2624"]
[BlackElo "2912"]
[WhiteTeam "KGZ"]
[BlackTeam "FID"]
[WhiteClock "0:00:28"]
[BlackClock "0:00:03"]

1. d4 {[%clk 0:02:53]}  Nf6 {[%clk 0:03:00]} 2. Nc3 {[%clk 0:02:53]}  e6 {[%clk 0:03:00]} 3. Bf4 {[%clk 0:02:53]}  d5 {[%clk 0:02:59]} 4. Nb5 {[%clk 0:02:51]}  Na6 {[%clk 0:02:59]} 5. e3 {[%clk 0:02:51]}  c6 {[%clk 0:02:59]} 6. Nc3 {[%clk 0:02:51]}  Be7 {[%clk 0:02:51]} 7. Nf3 {[%clk 0:02:49]}  O-O {[%clk 0:02:51]} 8. h3 {[%clk 0:02:47]}  c5 {[%clk 0:02:49]} 9. Bxa6 {[%clk 0:02:44]}  bxa6 {[%clk 0:02:49]} 10. O-O {[%clk 0:02:44]}  Bb7 {[%clk 0:02:37]} 11. Ne5 {[%clk 0:02:41]}  Rc8 {[%clk 0:02:26]} 12. a3 {[%clk 0:02:38]}  cxd4 {[%clk 0:01:59]} 13. exd4 {[%clk 0:02:39]}  Ne4 {[%clk 0:01:59]} 14. Nxe4 {[%clk 0:02:35]}  dxe4 {[%clk 0:02:00]} 15. c3 {[%clk 0:02:06]}  f6 {[%clk 0:01:54]} 16. Ng4 {[%clk 0:02:05]}  Qb6 {[%clk 0:01:52]} 17. Qe2 {[%clk 0:01:59]}  a5 {[%clk 0:01:50]} 18. Rfe1 {[%clk 0:01:58]}  a4 {[%clk 0:01:25]} 19. Rad1 {[%clk 0:01:46]}  Bd5 {[%clk 0:01:14]} 20. Bc1 {[%clk 0:01:42]}  Bc4 {[%clk 0:00:58]} 21. Qe3 {[%clk 0:01:41]}  Bd5 {[%clk 0:00:45]} 22. Qe2 {[%clk 0:01:36]}  Bd6 {[%clk 0:00:44]} 23. Ne3 {[%clk 0:01:30]}  f5 {[%clk 0:00:41]} 24. c4 {[%clk 0:01:28]}  f4 {[%clk 0:00:36]} 25. Nxd5 {[%clk 0:01:26]}  exd5 {[%clk 0:00:37]} 26. c5 {[%clk 0:01:26]}  Qc6 {[%clk 0:00:15]} 27. cxd6 {[%clk 0:01:26]}  Qxd6 {[%clk 0:00:16]} 28. Qg4 {[%clk 0:01:25]}  Rc2 {[%clk 0:00:10]} 29. Rd2 {[%clk 0:01:24]}  Rc6 {[%clk 0:00:10]} 30. Rdd1 {[%clk 0:01:07]}  Qc7 {[%clk 0:00:08]} 31. Bd2 {[%clk 0:01:03]}  Rg6 {[%clk 0:00:09]} 32. Qh4 {[%clk 0:01:03]}  e3 {[%clk 0:00:04]} 33. Bb4 {[%clk 0:00:59]}  f3 {[%clk 0:00:04]} 34. g4 {[%clk 0:00:38]}  e2 {[%clk 0:00:04]} 35. Rc1 {[%clk 0:00:37]}  Qd8 {[%clk 0:00:03]} 36. Qxd8 {[%clk 0:00:33]}  Rxd8 {[%clk 0:00:04]} 37. Rc3 {[%clk 0:00:31]}  h5 {[%clk 0:00:01]} 38. Rxf3 {[%clk 0:00:28]}  hxg4 {[%clk 0:00:02]} 39. Rg3 {[%clk 0:00:29]}  Re8 {[%clk 0:00:02]} 40. Rxg4 {[%clk 0:00:28]}  Rxg4+ {[%clk 0:00:02]} 41. hxg4 {[%clk 0:00:28]}  Re4 {[%clk 0:00:03]} 42. f3 {[%clk 0:00:28]}  Rxd4 {[%clk 0:00:04]} 43. Rxe2 {[%clk 0:00:29]}  Kf7 {[%clk 0:00:05]} 44. Kf2 {[%clk 0:00:29]}  Kf6 {[%clk 0:00:03]} 45. Bc3 {[%clk 0:00:28]} 1-0

[Event "December 12 Early 2023"]
[Site "https://www.chess.com"]
[Date "2023.12.12"]
[Round "4"]
[White "Belov, Alexei"]
[Black "Mitrabha, Guha"]
[Result "0-1"]
[Board "20"]
[TimeControl "180+1"]
[WhiteFideId "4128206"]
[BlackFideId "5057000"]
[WhiteElo "2587"]
[BlackElo "2905"]
[WhiteTeam "RUS"]
[BlackTeam "IND"]
[WhiteClock "0:00:08"]
[BlackClock "0:01:22"]

1. e4 {[%clk 0:03:00]}  c6 {[%clk 0:03:00]} 2. d4 {[%clk 0:03:00]}  d5 {[%clk 0:03:00]} 3. Nd2 {[%clk 0:03:01]}  dxe4 {[%clk 0:03:00]} 4. Nxe4 {[%clk 0:03:01]}  Nf6 {[%clk 0:03:01]} 5. Nxf6+ {[%clk 0:03:02]}  gxf6 {[%clk 0:03:01]} 6. Qd3 {[%clk 0:03:01]}  h5 {[%clk 0:03:00]} 7. Bd2 {[%clk 0:02:58]}  Qd5 {[%clk 0:02:59]} 8. c4 {[%clk 0:02:50]}  Qf5 {[%clk 0:02:56]} 9. h4 {[%clk 0:02:40]}  Na6 {[%clk 0:02:50]} 10. O-O-O {[%clk 0:02:20]}  Rg8 {[%clk 0:02:48]} 11. Qxf5 {[%clk 0:02:10]}  Bxf5 {[%clk 0:02:49]} 12. Ne2 {[%clk 0:02:10]}  e6 {[%clk 0:02:48]} 13. Nf4 {[%clk 0:02:05]}  Rh8 {[%clk 0:02:42]} 14. Be2 {[%clk 0:02:01]}  Bg4 {[%clk 0:02:41]} 15. f3 {[%clk 0:01:50]}  Bf5 {[%clk 0:02:39]} 16. Nxh5 {[%clk 0:01:39]}  Rxh5 {[%clk 0:02:30]} 17. g4 {[%clk 0:01:39]}  Bxg4 {[%clk 0:02:30]} 18. fxg4 {[%clk 0:01:39]}  Rh8 {[%clk 0:02:31]} 19. Rdf1 {[%clk 0:01:26]}  Bg7 {[%clk 0:02:25]} 20. h5 {[%clk 0:01:24]}  Ke7 {[%clk 0:02:12]} 21. h6 {[%clk 0:01:09]}  Bf8 {[%clk 0:02:11]} 22. Bf4 {[%clk 0:01:05]}  Rd8 {[%clk 0:02:05]} 23. g5 {[%clk 0:00:52]}  Rxd4 {[%clk 0:02:00]} 24. gxf6+ {[%clk 0:00:48]}  Ke8 {[%clk 0:01:58]} 25. h7 {[%clk 0:00:30]}  Nc5 {[%clk 0:01:44]} 26. Bd2 {[%clk 0:00:25]}  Ne4 {[%clk 0:01:33]} 27. Be3 {[%clk 0:00:24]}  Rd8 {[%clk 0:01:33]} 28. Rfg1 {[%clk 0:00:23]}  Nxf6 {[%clk 0:01:29]} 29. Bg5 {[%clk 0:00:20]}  Be7 {[%clk 0:01:28]} 30. Bh6 {[%clk 0:00:20]}  Rxh7 {[%clk 0:01:28]} 31. Bg7 {[%clk 0:00:15]}  Rxh1 {[%clk 0:01:27]} 32. Rxh1 {[%clk 0:00:15]}  Ne4 {[%clk 0:01:28]} 33. Bf3 {[%clk 0:00:13]}  Bg5+ {[%clk 0:01:26]} 34. Kc2 {[%clk 0:00:14]}  Rd2+ {[%clk 0:01:26]} 35. Kb3 {[%clk 0:00:08]}  Rd3+ {[%clk 0:01:22]} 0-1

[Event "December 12 Early 2023"]
[Site "https://www.chess.com"]
[Date "2023.12.12"]
[Round "4"]
[White "Cremisi, Daniel"]
[Black "Riehle, Marco"]
[Result "1-0"]
[Board "25"]
[TimeControl "180+1"]
[WhiteFideId "2089882"]
[BlackFideId "12904392"]
[WhiteElo "2618"]
[BlackElo "2892"]
[WhiteTeam "USA"]
[BlackTeam "GER"]
[WhiteClock "0:01:35"]
[BlackClock "0:01:53"]

1. d4 {[%clk 0:03:00]}  d5 {[%clk 0:02:59]} 2. c4 {[%clk 0:03:00]}  e6 {[%clk 0:02:59]} 3. Nc3 {[%clk 0:03:00]}  c5 {[%clk 0:02:59]} 4. cxd5 {[%clk 0:03:00]}  cxd4 {[%clk 0:02:59]} 5. Qa4+ {[%clk 0:02:58]}  Bd7 {[%clk 0:02:59]} 6. Qxd4 {[%clk 0:02:58]}  exd5 {[%clk 0:03:00]} 7. Qxd5 {[%clk 0:02:58]}  Nf6 {[%clk 0:03:00]} 8. Qd3 {[%clk 0:02:58]}  Na6 {[%clk 0:02:59]} 9. Bg5 {[%clk 0:02:54]}  Nc5 {[%clk 0:02:59]} 10. Qe3+ {[%clk 0:02:49]}  Be7 {[%clk 0:02:57]} 11. Bxf6 {[%clk 0:02:40]}  gxf6 {[%clk 0:02:58]} 12. Nd5 {[%clk 0:02:38]}  Qa5+ {[%clk 0:02:48]} 13. b4 {[%clk 0:02:34]}  Nd3+ {[%clk 0:02:41]} 14. Qxd3 {[%clk 0:02:33]}  Bxb4+ {[%clk 0:02:40]} 15. Nxb4 {[%clk 0:02:32]}  Qxb4+ {[%clk 0:02:41]} 16. Qd2 {[%clk 0:02:32]}  Qa3 {[%clk 0:02:41]} 17. Qe3+ {[%clk 0:02:29]}  Qxe3 {[%clk 0:02:40]} 18. fxe3 {[%clk 0:02:30]}  Ke7 {[%clk 0:02:38]} 19. Nf3 {[%clk 0:02:30]}  Rhc8 {[%clk 0:02:39]} 20. Nd4 {[%clk 0:02:29]}  Rc3 {[%clk 0:02:34]} 21. Kf2 {[%clk 0:02:29]}  b5 {[%clk 0:02:31]} 22. g3 {[%clk 0:02:28]}  b4 {[%clk 0:02:31]} 23. Bg2 {[%clk 0:02:28]}  Rac8 {[%clk 0:02:32]} 24. Rhd1 {[%clk 0:02:24]}  a5 {[%clk 0:02:31]} 25. Rd2 {[%clk 0:02:24]}  Be6 {[%clk 0:02:26]} 26. Nxe6 {[%clk 0:02:23]}  fxe6 {[%clk 0:02:27]} 27. Rad1 {[%clk 0:02:23]}  R8c7 {[%clk 0:02:27]} 28. Bh3 {[%clk 0:02:13]}  Ra3 {[%clk 0:02:25]} 29. Rd6 {[%clk 0:02:08]}  f5 {[%clk 0:02:19]} 30. e4 {[%clk 0:02:06]}  Rxa2 {[%clk 0:02:18]} 31. exf5 {[%clk 0:02:05]}  exf5 {[%clk 0:02:18]} 32. Bxf5 {[%clk 0:02:05]}  b3 {[%clk 0:02:19]} 33. Rh6 {[%clk 0:02:00]}  Rc5 {[%clk 0:02:14]} 34. g4 {[%clk 0:02:00]}  b2 {[%clk 0:02:02]} 35. Rd7+ {[%clk 0:01:54]}  Ke8 {[%clk 0:02:02]} 36. Rb7 {[%clk 0:01:38]}  Ra4 {[%clk 0:01:53]} 37. Rhxh7 {[%clk 0:01:37]}  Rxf5+ {[%clk 0:01:52]} 38. gxf5 {[%clk 0:01:36]}  Rb4 {[%clk 0:01:53]} 39. Rh8# {[%clk 0:01:35]} 1-0

[Event "December 12 Early 2023"]
[Site "https://www.chess.com"]
[Date "2023.12.12"]
[Round "4"]
[White "Guliev, Logman"]
[Black "Khripachenko, Alexander"]
[Result "0-1"]
[Board "28"]
[TimeControl "180+1"]
[WhiteFideId "13400061"]
[BlackFideId "54184975"]
[WhiteElo "2594"]
[BlackElo "2802"]
[WhiteTeam "AZE"]
[BlackTeam "FID"]
[WhiteClock "0:00:00"]
[BlackClock "0:01:06"]

1. e4 {[%clk 0:03:00]}  c5 {[%clk 0:02:58]} 2. Nf3 {[%clk 0:03:00]}  e6 {[%clk 0:02:58]} 3. d4 {[%clk 0:03:01]}  cxd4 {[%clk 0:02:59]} 4. Nxd4 {[%clk 0:03:01]}  Nc6 {[%clk 0:03:00]} 5. Nxc6 {[%clk 0:03:01]}  bxc6 {[%clk 0:03:00]} 6. Bd3 {[%clk 0:03:02]}  d5 {[%clk 0:03:00]} 7. O-O {[%clk 0:03:02]}  Bd6 {[%clk 0:03:01]} 8. Re1 {[%clk 0:02:57]}  Ne7 {[%clk 0:02:59]} 9. c4 {[%clk 0:02:51]}  O-O {[%clk 0:02:57]} 10. Nc3 {[%clk 0:02:43]}  d4 {[%clk 0:02:57]} 11. e5 {[%clk 0:02:39]}  Bc7 {[%clk 0:02:56]} 12. Ne4 {[%clk 0:02:29]}  Nf5 {[%clk 0:02:50]} 13. Ng3 {[%clk 0:02:24]}  Re8 {[%clk 0:02:45]} 14. Nxf5 {[%clk 0:02:11]}  exf5 {[%clk 0:02:46]} 15. f4 {[%clk 0:02:07]}  c5 {[%clk 0:02:46]} 16. Qf3 {[%clk 0:02:03]}  Rb8 {[%clk 0:02:46]} 17. b3 {[%clk 0:02:03]}  a5 {[%clk 0:02:46]} 18. Ba3 {[%clk 0:02:00]}  Bb6 {[%clk 0:02:41]} 19. Rad1 {[%clk 0:01:52]}  Be6 {[%clk 0:02:40]} 20. Kh1 {[%clk 0:01:44]}  Qd7 {[%clk 0:02:40]} 21. h3 {[%clk 0:01:40]}  a4 {[%clk 0:02:40]} 22. b4 {[%clk 0:01:20]}  cxb4 {[%clk 0:02:37]} 23. Bxb4 {[%clk 0:01:20]}  Rec8 {[%clk 0:02:38]} 24. Rc1 {[%clk 0:01:16]}  Bc5 {[%clk 0:02:38]} 25. Bxc5 {[%clk 0:01:03]}  Rxc5 {[%clk 0:02:39]} 26. Rb1 {[%clk 0:01:04]}  Rbc8 {[%clk 0:02:38]} 27. Rec1 {[%clk 0:01:02]}  g6 {[%clk 0:02:32]} 28. Rb7 {[%clk 0:00:56]}  Qd8 {[%clk 0:02:32]} 29. Qe2 {[%clk 0:00:50]}  Bxc4 {[%clk 0:02:25]} 30. Rxc4 {[%clk 0:00:46]}  Qd5 {[%clk 0:02:20]} 31. Rxc5 {[%clk 0:00:43]}  Rxc5 {[%clk 0:02:20]} 32. Rb8+ {[%clk 0:00:42]}  Kg7 {[%clk 0:02:19]} 33. Kh2 {[%clk 0:00:42]}  Rc3 {[%clk 0:02:17]} 34. Rb2 {[%clk 0:00:26]}  h5 {[%clk 0:02:14]} 35. Rc2 {[%clk 0:00:26]}  Qc5 {[%clk 0:02:12]} 36. Rxc3 {[%clk 0:00:25]}  dxc3 {[%clk 0:02:13]} 37. Bc2 {[%clk 0:00:25]}  Qd4 {[%clk 0:02:11]} 38. Qf3 {[%clk 0:00:25]}  h4 {[%clk 0:02:10]} 39. Bd3 {[%clk 0:00:23]}  a3 {[%clk 0:02:10]} 40. Qe2 {[%clk 0:00:22]}  Qxf4+ {[%clk 0:02:10]} 41. Kh1 {[%clk 0:00:21]}  Kf8 {[%clk 0:02:09]} 42. e6 {[%clk 0:00:20]}  Qc1+ {[%clk 0:01:37]} 43. Kh2 {[%clk 0:00:19]}  Qf4+ {[%clk 0:01:34]} 44. Kg1 {[%clk 0:00:19]}  fxe6 {[%clk 0:01:33]} 45. Kh1 {[%clk 0:00:10]}  Ke7 {[%clk 0:01:32]} 46. Bc2 {[%clk 0:00:11]}  Qd2 {[%clk 0:01:31]} 47. Qd3 {[%clk 0:00:03]}  Qe1+ {[%clk 0:01:28]} 48. Kh2 {[%clk 0:00:03]}  g5 {[%clk 0:01:28]} 49. Qf3 {[%clk 0:00:03]}  Kf6 {[%clk 0:01:26]} 50. Qd3 {[%clk 0:00:03]}  Ke7 {[%clk 0:01:05]} 51. Qf3 {[%clk 0:00:02]}  Kf6 {[%clk 0:01:06]} 52. Qd3 {[%clk 0:00:00]}  Qd2 {[%clk 0:01:06]} 0-1

[Event "December 12 Early 2023"]
[Site "https://www.chess.com"]
[Date "2023.12.12"]
[Round "4"]
[White "Cordoba Roa, Angel Gabriel"]
[Black "Wagh Suyog"]
[Result "0-1"]
[Board "29"]
[TimeControl "180+1"]
[WhiteFideId "3957624"]
[BlackFideId "25071688"]
[WhiteElo "2572"]
[BlackElo "2786"]
[WhiteTeam "COL"]
[BlackTeam "IND"]
[WhiteClock "0:00:07"]
[BlackClock "0:00:14"]

1. e4 {[%clk 0:03:00]}  c5 {[%clk 0:03:00]} 2. Nf3 {[%clk 0:02:59]}  d6 {[%clk 0:03:00]} 3. Bb5+ {[%clk 0:02:59]}  Nd7 {[%clk 0:03:00]} 4. a4 {[%clk 0:02:58]}  Nf6 {[%clk 0:02:53]} 5. Nc3 {[%clk 0:02:58]}  g6 {[%clk 0:02:46]} 6. a5 {[%clk 0:02:54]}  a6 {[%clk 0:02:46]} 7. Bc4 {[%clk 0:02:55]}  b6 {[%clk 0:02:46]} 8. Bxf7+ {[%clk 0:02:46]}  Kxf7 {[%clk 0:02:46]} 9. Ng5+ {[%clk 0:02:47]}  Kg8 {[%clk 0:02:47]} 10. Ne6 {[%clk 0:02:47]}  Qe8 {[%clk 0:02:47]} 11. Nc7 {[%clk 0:02:47]}  Qd8 {[%clk 0:02:40]} 12. Nxa8 {[%clk 0:02:46]}  bxa5 {[%clk 0:02:40]} 13. Nd5 {[%clk 0:02:07]}  Nxd5 {[%clk 0:02:29]} 14. exd5 {[%clk 0:02:08]}  Bb7 {[%clk 0:02:20]} 15. Qe2 {[%clk 0:02:08]}  Bxd5 {[%clk 0:02:06]} 16. Qxa6 {[%clk 0:02:06]}  Qxa8 {[%clk 0:01:53]} 17. Qxa8 {[%clk 0:02:02]}  Bxa8 {[%clk 0:01:54]} 18. O-O {[%clk 0:02:02]}  Bg7 {[%clk 0:01:42]} 19. Rxa5 {[%clk 0:02:02]}  Kf7 {[%clk 0:01:43]} 20. b3 {[%clk 0:01:57]}  Nb6 {[%clk 0:01:25]} 21. Re1 {[%clk 0:01:56]}  Nd5 {[%clk 0:01:20]} 22. Ra7 {[%clk 0:01:53]}  Re8 {[%clk 0:01:13]} 23. Ba3 {[%clk 0:01:49]}  Nf4 {[%clk 0:01:02]} 24. f3 {[%clk 0:01:37]}  Bd5 {[%clk 0:00:58]} 25. c4 {[%clk 0:01:30]}  Bd4+ {[%clk 0:00:55]} 26. Kf1 {[%clk 0:01:26]}  Be6 {[%clk 0:00:55]} 27. Re4 {[%clk 0:01:14]}  g5 {[%clk 0:00:53]} 28. g3 {[%clk 0:00:59]}  Ng6 {[%clk 0:00:44]} 29. Kg2 {[%clk 0:00:54]}  Bf5 {[%clk 0:00:41]} 30. Rxd4 {[%clk 0:00:54]}  cxd4 {[%clk 0:00:41]} 31. Bxd6 {[%clk 0:00:55]}  Kf6 {[%clk 0:00:31]} 32. Bc7 {[%clk 0:00:48]}  Bd3 {[%clk 0:00:22]} 33. c5 {[%clk 0:00:45]}  Ke6 {[%clk 0:00:19]} 34. b4 {[%clk 0:00:42]}  Kd5 {[%clk 0:00:19]} 35. Ba5 {[%clk 0:00:31]}  h5 {[%clk 0:00:15]} 36. h3 {[%clk 0:00:28]}  g4 {[%clk 0:00:14]} 37. hxg4 {[%clk 0:00:26]}  hxg4 {[%clk 0:00:15]} 38. fxg4 {[%clk 0:00:26]}  Ne5 {[%clk 0:00:15]} 39. Rc7 {[%clk 0:00:17]}  Be4+ {[%clk 0:00:15]} 40. Kf1 {[%clk 0:00:15]}  Rf8+ {[%clk 0:00:15]} 41. Ke1 {[%clk 0:00:15]}  Nd3+ {[%clk 0:00:15]} 42. Kd1 {[%clk 0:00:15]}  Rf1+ {[%clk 0:00:15]} 43. Kc2 {[%clk 0:00:07]}  Kc4 {[%clk 0:00:14]} 0-1